bitfinex-derivatives/quotes_ETHF0:USTF0_20250708
["timestamp","ask_amount","ask_price","bid_price","bid_amount"]
[1751933102916,35.6786,2544.9,2544.8,1.47131]
[1751933103816,36.46438,2544.9,2544.8,1.47131]
[1751933104718,38.63769,2544.9,2544.2,2.93109]
[1751933104915,0.78598,2544.3,2544.2,0.78598]
[1751933105219,0.78598,2544.3,2544.0,0.9661]
[1751933105220,0.78603,2544.2,2544.0,0.78604]
[1751933105410,27.4006,2544.1,2544.0,1.47154]
[1751933106207,28.18663,2544.1,2544.0,1.47154]
[1751933106417,29.60403,2544.1,2544.0,0.6855]
[1751933106615,29.60403,2544.1,2544.0,1.47156]
[1751933107117,29.60403,2544.1,2544.0,0.6855]
[1751933107713,29.8126,2544.1,2543.7,0.78614]
[1751933108013,0.78608,2544.0,2543.9,0.78609]
[1751933108217,0.78609,2543.9,2543.8,0.7861]
[1751933108417,28.19969,2543.9,2543.8,0.7861]
[1751933108612,28.19969,2543.9,2543.8,0.78612]
[1751933108613,28.8055,2543.9,2543.8,0.78612]
[1751933108819,29.59159,2543.9,2543.8,1.47162]
[1751933109117,28.8055,2543.9,2543.7,0.78613]
[1751933109317,0.78612,2543.8,2543.7,0.78613]
[1751933109520,1.42672,2543.8,2543.7,0.6855]
[1751933109920,0.78615,2543.7,2543.6,0.78616]
[1751933110218,0.78618,2543.6,2543.5,1.4903]
[1751933110518,1.42678,2543.6,2543.5,2.1758]
[1751933110717,2.81868,2543.6,2543.5,2.1758]
[1751933110917,2.81868,2543.6,2543.5,2.17581]
[1751933111218,1.3919,2543.6,2543.5,2.17581]
[1751933111616,2.17808,2543.6,2543.5,2.17581]
[1751933111815,1.3919,2543.6,2543.5,2.17581]
[1751933112418,2.81868,2543.6,2543.5,2.17581]
[1751933115918,2.81868,2543.6,2543.5,1.3896]
[1751933116115,3.0271,2543.6,2543.1,0.9661]
[1751933116319,0.78628,2543.3,2543.2,0.78628]
[1751933116518,27.4096,2543.3,2543.2,1.47178]
[1751933116820,27.4096,2543.3,2543.2,2.43788]
[1751933117815,61.343,2544.0,2543.2,1.6516]
[1751933118018,8.295,2543.7,2543.6,0.78618]
[1751933118219,35.066,2543.7,2543.6,2.43778]
[1751933118416,35.85215,2543.7,2543.6,2.43778]
[1751933119121,62.12909,2544.0,2543.9,0.78609]
[1751933119320,97.19709,2544.0,2543.9,0.6855]
[1751933119621,97.19709,2544.0,2543.8,0.7861]
[1751933119622,0.78609,2543.9,2543.8,0.7861]
[1751933119817,1.42669,2543.9,2543.8,1.4716]
[1751933120021,28.20369,2543.9,2543.8,1.4716]
[1751933120620,29.49019,2543.9,2543.8,1.4716]
[1751933123222,28.7041,2543.9,2543.8,1.4716]
[1751933123624,28.7584,2543.9,2543.8,1.4716]
[1751933123924,29.54449,2543.9,2543.8,1.4716]
[1751933124424,28.7584,2543.9,2543.8,1.4716]
[1751933124618,29.54449,2543.9,2543.8,1.4716]
[1751933124814,28.7584,2543.9,2543.8,0.7861]
[1751933125027,28.7584,2543.9,2543.8,1.4332]
[1751933125922,29.54449,2543.9,2543.8,1.4332]
[1751933127025,28.7584,2543.9,2543.8,1.4332]
[1751933127927,61.343,2544.0,2543.9,0.78609]
[1751933128122,61.343,2544.0,2543.9,2.40129]
[1751933128328,88.107,2544.0,2543.9,2.40129]
[1751933128827,61.343,2544.0,2543.9,2.40129]
[1751933129026,88.114,2544.0,2543.9,2.40129]
[1751933136832,88.90006,2544.0,2543.9,1.43319]
[1751933137032,90.28396,2544.0,2543.9,1.43319]
[1751933137831,89.4979,2544.0,2543.9,1.43319]
[1751933138032,90.28396,2544.0,2543.9,1.43319]
[1751933138834,89.4979,2544.0,2543.9,1.43319]
[1751933139228,90.28396,2544.0,2543.9,1.43319]
[1751933139434,0.78621,2543.6,2543.5,0.78617]
[1751933139734,28.24711,2543.6,2543.5,0.78617]
[1751933140037,0.78624,2543.5,2543.4,0.78624]
[1751933140233,2.77094,2543.5,2543.4,0.78624]
[1751933140529,13.49177146,2543.5,2543.4,0.78624]
[1751933140833,10.9746,2543.5,2543.4,1.43334]
[1751933141733,61.343,2544.0,2543.9,0.78609]
[1751933141929,0.78611,2543.9,2543.8,0.78611]
[1751933142134,3.6326426,2543.9,2543.8,0.78611]
[1751933142336,4.3275426,2543.9,2543.8,1.43321]
[1751933142834,4.3275426,2543.9,2543.8,0.78611]
[1751933143034,4.3275426,2543.9,2543.8,1.43321]
[1751933143234,3.5414326,2543.9,2543.8,1.43321]
[1751933143828,11.8364326,2543.9,2543.8,2.40131]
[1751933144134,35.064,2543.9,2543.8,2.40131]
[1751933144440,35.7589,2543.9,2543.8,2.40131]
[1751933144738,35.064,2543.9,2543.8,2.40131]
[1751933145640,35.7589,2543.9,2543.8,2.40131]
[1751933146139,36.54499,2543.9,2543.8,2.40131]
[1751933146437,35.7589,2543.9,2543.8,1.43321]
[1751933147039,35.7589,2543.9,2543.8,2.40131]
[1751933147541,8.9899,2543.9,2543.8,2.40131]
[1751933147736,35.7589,2543.9,2543.8,2.40131]
[1751933148237,35.7589,2543.9,2543.8,1.43321]
[1751933149734,0.6949,2543.9,2543.8,1.43321]
[1751933149938,61.343,2544.0,2543.9,0.78609]
[1751933150238,88.105,2544.0,2543.9,2.45159]
[1751933151837,61.343,2544.0,2543.9,1.48349]
[1751933152039,88.107,2544.0,2543.9,1.48349]
[1751933153437,88.107,2544.0,2543.9,2.54139]
[1751933154737,26.764,2544.0,2543.9,2.54139]
[1751933155044,26.764,2544.0,2543.9,1.48349]
[1751933155242,27.4293,2544.0,2543.9,1.48349]
[1751933159545,28.8172,2544.0,2543.9,0.78609]
[1751933159744,28.8172,2544.0,2543.9,1.48349]
[1751933159942,28.8172,2544.0,2543.8,3.52744658]
[1751933160246,3.90631,2543.9,2543.8,0.78609]
[1751933160448,4.61381,2543.9,2543.8,0.78609]
[1751933162049,0.78616,2543.8,2543.7,0.78614]
[1751933162348,30.37546844,2543.8,2543.7,0.78614]
[1751933164545,29.58930844,2543.8,2543.5,0.6573]
[1751933164850,0.78621,2543.6,2543.5,0.78619]
[1751933165045,27.55321,2543.6,2543.5,0.78619]
[1751933165250,27.55321,2543.6,2543.5,1.48359]
[1751933165545,28.21851,2543.6,2543.5,1.48359]
[1751933165751,27.55321,2543.6,2543.5,0.78619]
[1751933165946,28.21851,2543.6,2543.5,0.78619]
[1751933166152,28.21851,2543.6,2543.5,1.48359]
[1751933166651,27.4323,2543.6,2543.5,1.48359]
[1751933167147,29.62268,2543.6,2543.5,1.48359]
[1751933167543,1.4042,2543.6,2543.5,1.48359]
[1751933167744,1.4042,2543.6,2543.5,2.54149]
[1751933167745,28.8345,2543.6,2543.5,2.54149]
[1751933168250,28.1692,2543.6,2543.5,2.54149]
[1751933168450,28.95538,2543.6,2543.5,2.54149]
[1751933168651,29.62068,2543.6,2543.5,1.48359]
[1751933169455,29.62068,2543.6,2543.5,0.6974]
[1751933169850,30.67538,2543.6,2543.5,0.6974]
[1751933170153,0.78627,2543.4,2543.3,0.78625]
[1751933170347,28.21157,2543.4,2543.3,1.48365]
[1751933170549,28.21157,2543.4,2543.3,0.78625]
[1751933170748,29.52707,2543.4,2543.3,1.48365]
[1751933172654,28.7408,2543.4,2543.3,1.48365]
[1751933173155,28.7408,2543.4,2543.3,2.54155]
[1751933173356,27.4253,2543.4,2543.3,2.54155]
[1751933174155,28.21154,2543.4,2543.3,2.54155]
[1751933175456,28.21154,2543.4,2543.3,1.48365]
[1751933175751,0.7863,2543.3,2543.2,0.78627]
[1751933175955,0.7863,2543.2,2543.1,1.44361]
[1751933176157,29.5732,2543.2,2543.1,1.44361]
[1751933176352,29.5732,2543.2,2543.1,0.6573]
[1751933176858,29.5732,2543.2,2543.1,1.3547]
[1751933177157,29.5732,2543.2,2543.1,2.14104]
[1751933177354,28.1216,2543.2,2543.1,2.14104]
[1751933178255,28.7869,2543.2,2543.1,2.14104]
[1751933178456,29.57321,2543.2,2543.1,2.14104]
[1751933179660,28.7869,2543.2,2543.1,2.14104]
[1751933179857,27.4163,2543.2,2543.1,3.19894]
[1751933180155,8.294,2543.7,2543.6,0.78618]
[1751933180357,37.16162652,2543.7,2543.6,1.47148]
[1751933180749,37.94777652,2543.7,2543.6,1.47148]
[1751933181156,0.78625,2543.5,2543.4,0.78622]
[1751933181457,29.65387652,2543.5,2543.4,1.47152]
[1751933181658,30.70857652,2543.5,2543.4,1.47154]
[1751933181857,31.98767652,2543.5,2543.4,0.78624]
[1751933182052,31.98767652,2543.5,2543.1,0.6835]
[1751933182053,31.20142652,2543.5,2543.1,0.6835]
[1751933182252,0.78631,2543.2,2543.1,1.46982]
[1751933182450,28.23331,2543.2,2543.1,1.46982]
[1751933182959,28.88361,2543.2,2543.1,2.15512]
[1751933184260,28.88361,2543.2,2543.1,1.3688]
[1751933184462,28.88361,2543.2,2543.1,2.15514]
[1751933185063,28.88361,2543.2,2542.8,3.52744658]
[1751933185064,0.78639,2543.0,2542.8,3.52744658]
[1751933185259,26.772,2542.9,2542.8,1.48663]
[1751933185458,27.446,2542.9,2542.8,2.17193]
[1751933185657,26.772,2542.9,2542.8,2.17193]
[1751933185858,27.446,2542.9,2542.8,2.17193]
[1751933186058,27.446,2542.9,2542.8,3.23433]
[1751933186763,27.446,2542.9,2542.8,6.76177658]
[1751933186959,27.446,2542.9,2542.8,2.17193]
[1751933187166,28.2324,2542.9,2542.8,2.17193]
[1751933187368,27.446,2542.9,2542.8,2.17193]
[1751933188666,28.2324,2542.9,2542.8,2.17193]
[1751933188965,28.2324,2542.9,2542.6,5.76822208]
[1751933188966,0.78649,2542.7,2542.6,0.78647]
[1751933189166,1.46049,2542.7,2542.6,1.47177]
[1751933189767,2.82169,2542.7,2542.6,1.47177]
[1751933191969,0.78649,2542.6,2542.5,1.4779]
[1751933192168,28.23649,2542.6,2542.5,1.4779]
[1751933192370,28.23649,2542.6,2542.5,2.1632]
[1751933192764,29.29709,2542.6,2542.5,4.21406624]
[1751933192964,0.78655,2542.5,2542.4,0.78654]
[1751933193166,2.79945,2542.5,2542.4,0.78654]
[1751933193365,1.46052,2542.5,2542.4,2.53424]
[1751933193973,0.674,2542.5,2542.4,2.53424]
[1751933194371,1.46052,2542.5,2542.4,2.53424]
[1751933194770,1.46052,2542.5,2542.4,0.6853]
[1751933194976,0.78655,2542.4,2542.3,0.6417]
[1751933195174,1.46055,2542.4,2542.3,1.327]
[1751933195373,2.82765,2542.4,2542.3,1.47186]
[1751933195671,0.78661,2542.2,2542.1,1.49153]
[1751933195871,28.24961,2542.2,2542.1,2.17683]
[1751933197665,26.789,2542.2,2542.1,3.23923]
[1751933197868,0.78653,2542.5,2542.4,0.78655]
[1751933198065,35.764,2542.5,2542.4,1.47185]
[1751933198370,0.78661,2542.2,2542.1,0.7049]
[1751933198575,28.25461,2542.2,2542.1,1.3902]
[1751933199468,29.60771,2542.2,2542.1,2.17684]
[1751933199876,29.60771,2542.2,2542.1,1.3902]
[1751933200084,29.60771,2542.2,2542.1,1.47195]
[1751933200679,29.60771,2542.2,2542.1,0.6853]
[1751933200882,34.8817,2542.2,2541.3,3.52876624]
[1751933201181,34.8817,2542.2,2540.6,3.93544]
[1751933201182,1.96672,2542.0,2540.9,3.52876624]
[1751933201487,0.78698,2541.1,2541.0,0.78699]
[1751933201787,27.523,2541.1,2541.0,1.47229]
[1751933202087,28.30996,2541.1,2541.0,1.47229]
[1751933202482,27.523,2541.1,2541.0,1.47229]
[1751933202685,26.85,2541.1,2541.0,2.53469]
[1751933202888,26.849,2541.1,2541.0,2.53469]
[1751933204486,2.08963,2541.6,2541.0,2.53469]
[1751933204684,2.08963,2541.6,2541.4,0.78683]
[1751933204685,35.92385,2541.5,2541.4,0.78683]
[1751933204987,36.59785,2541.5,2541.4,1.47213]
[1751933205187,8.294,2541.6,2541.5,0.78683]
[1751933205378,35.144,2541.6,2541.5,2.53453]
[1751933205588,61.373,2541.7,2541.6,0.7868]
[1751933205783,1.9525,2542.1,2541.7,1.96693]
[1751933205784,0.78666,2542.1,2541.7,1.96693]
[1751933205985,10.26047,2542.3,2542.0,0.6853]
[1751933206286,1.46065,2542.1,2542.0,1.47198]
[1751933206588,0.674,2542.1,2542.0,1.47198]
[1751933206789,1.46065,2542.1,2542.0,1.47198]
[1751933208281,0.674,2542.1,2542.0,1.47198]
[1751933208488,26.872,2542.2,2542.1,0.78665]
[1751933208686,8.294,2542.3,2542.2,0.78661]
[1751933208888,35.161,2542.3,2542.2,0.78661]
[1751933209191,35.161,2542.3,2542.2,1.49491]
[1751933209390,8.294,2542.3,2542.2,1.49491]
[1751933209693,35.167,2542.3,2542.2,1.49491]
[1751933211292,61.389,2542.6,2542.5,0.78652]
[1751933211681,88.257,2542.6,2542.5,0.78652]
[1751933212088,61.389,2542.6,2542.5,0.78652]
[1751933212287,61.389,2542.6,2542.5,2.49782]
[1751933212288,88.257,2542.6,2542.5,2.49782]
[1751933216094,26.868,2542.6,2542.5,2.49782]
[1751933216797,3.0117,2543.1,2542.5,2.49782]
[1751933216798,2.0508,2543.1,2543.0,0.78637]
[1751933216994,38.69207,2543.1,2543.0,0.78637]
[1751933217295,38.69207,2543.1,2542.9,0.78637]
[1751933217296,0.78637,2543.0,2542.9,0.78637]
[1751933217490,2.79597,2543.0,2542.9,1.47147]
[1751933218696,29.65797,2543.0,2542.9,1.47147]
[1751933218891,28.8686,2543.0,2542.9,1.47147]
[1751933219090,28.1997,2543.0,2542.9,1.47147]
[1751933219292,29.65497,2543.0,2542.9,1.47147]
[1751933221199,0.78642,2542.9,2542.8,0.7864]
[1751933221396,1.45532,2542.9,2542.8,1.4715]
[1751933221595,28.98608,2543.0,2542.9,0.7864]
[1751933221899,29.65498,2543.0,2542.9,1.4715]
[1751933222798,28.8686,2543.0,2542.9,1.4715]
[1751933223296,29.65497,2543.0,2542.9,1.4715]
[1751933223501,0.78632,2543.2,2543.1,0.78631]
[1751933223794,29.61752,2543.2,2543.1,0.78631]
[1751933223996,29.61752,2543.2,2543.1,1.47141]
[1751933224396,29.61752,2543.2,2543.1,0.78631]
[1751933225098,29.61752,2543.2,2543.1,0.6851]
[1751933225400,29.61752,2543.2,2543.1,1.47144]
[1751933226501,0.78637,2543.1,2543.0,0.78635]
[1751933226702,2.79557,2543.1,2543.0,0.78635]
[1751933226895,2.0092,2543.1,2543.0,0.78635]
[1751933227095,2.0092,2543.1,2543.0,1.47145]
[1751933228105,1.3403,2543.1,2543.0,1.47145]
[1751933228303,26.835,2543.1,2543.0,1.7113]
[1751933228506,61.383,2543.4,2543.3,0.78627]
[1751933228709,88.218,2543.4,2543.3,1.47137]
[1751933228907,89.00424,2543.4,2543.3,0.78627]
[1751933229110,90.35294,2543.4,2543.3,1.47137]
[1751933229707,89.5667,2543.4,2543.3,1.47137]
[1751933230408,90.35294,2543.4,2543.3,1.47137]
[1751933230710,0.7863,2543.3,2543.2,0.78629]
[1751933231011,2.8288,2543.3,2543.2,1.47139]
[1751933231909,2.8288,2543.3,2543.2,0.6851]
[1751933232810,2.8288,2543.3,2543.2,1.4714]
[1751933233910,2.8288,2543.3,2543.2,0.6851]
[1751933234114,0.7863,2543.2,2543.1,0.78631]
[1751933234414,29.5721,2543.2,2543.1,0.78631]
[1751933234712,29.5721,2543.2,2543.1,0.6851]
[1751933235913,31.2019,2543.2,2543.1,0.6851]
[1751933236510,30.241,2543.2,2543.1,0.6851]
[1751933236909,31.2019,2543.2,2543.1,0.6851]
[1751933237309,31.2019,2543.2,2543.0,0.78634]
[1751933237310,32.38138,2543.2,2542.6,5.21036624]
[1751933237608,0.78639,2543.0,2542.9,0.78638]
[1751933237813,28.28829,2543.0,2542.9,1.47148]
[1751933238214,0.78642,2542.9,2542.8,0.78641]
[1751933238411,2.73322,2542.9,2542.8,1.47151]
[1751933239014,2.73322,2542.9,2542.8,1.47153]
[1751933240013,1.9468,2542.9,2542.8,1.47153]
[1751933240213,2.7332,2542.9,2542.8,1.47153]
[1751933241216,27.61938,2543.0,2542.9,0.7864]
[1751933241421,28.30278,2543.0,2542.9,1.4637]
[1751933241906,28.30278,2543.0,2542.9,0.7864]
[1751933242305,27.5164,2543.0,2542.6,7.17659624]
[1751933242512,0.78642,2542.9,2542.8,0.78641]
[1751933242714,2.85892,2542.9,2542.8,1.46371]
[1751933242914,2.0725,2542.9,2542.8,1.46371]
[1751933243114,1.3891,2542.9,2542.8,1.46371]
[1751933243315,0.6569,2543.2,2542.8,1.7176]
[1751933243515,62.16926,2543.4,2543.3,0.78627]
[1751933243818,91.84445167,2543.4,2543.3,0.78627]
[1751933244219,91.84445167,2543.4,2543.3,1.46357]
[1751933246420,91.84445167,2543.4,2543.3,0.6773]
[1751933246716,91.84445167,2543.4,2543.3,1.46357]
[1751933247418,91.84445167,2543.4,2543.3,0.6773]
[1751933249219,92.83105167,2543.4,2543.3,0.6773]
[1751933249920,92.83105167,2543.4,2543.3,1.46357]
[1751933250118,91.84445167,2543.4,2543.3,1.46357]
[1751933250326,91.84445167,2543.4,2543.3,0.6773]
[1751933251016,91.84445167,2543.4,2543.3,1.46357]
[1751933251418,91.84445167,2543.4,2543.3,0.6773]
[1751933252122,91.84445167,2543.4,2543.3,1.46357]
[1751933252820,89.65709167,2543.4,2543.3,2.50387]
[1751933253221,90.44333167,2543.4,2543.3,2.50387]
[1751933254722,90.44333167,2543.4,2543.3,1.46357]
[1751933255411,89.65709167,2543.4,2543.3,2.50387]
[1751933255615,62.84109167,2543.4,2543.3,2.50387]
[1751933255824,89.65509167,2543.4,2543.3,2.50387]
[1751933256117,88.197,2543.4,2543.3,2.50387]
[1751933257524,88.98324,2543.4,2543.3,2.50387]
[1751933257723,88.98324,2543.4,2543.3,1.46357]
[1751933259024,27.60024,2543.4,2543.3,1.46357]
[1751933259627,28.28364,2543.4,2543.3,1.46357]
[1751933260125,26.814,2543.4,2543.3,1.46357]
[1751933260326,28.28364,2543.4,2543.3,1.46357]
[1751933260516,28.28364,2543.4,2543.3,0.6773]
[1751933260722,0.7863,2543.2,2543.1,3.52876624]
[1751933260935,0.78637,2543.0,2542.9,4.31513624]
[1751933261123,0.7864,2542.9,2542.8,0.78641]
[1751933261323,2.7964,2542.9,2542.8,0.6773]
[1751933261526,2.7964,2542.9,2542.8,1.46373]
[1751933266728,2.7964,2542.9,2542.8,0.6773]
[1751933267627,3.4942,2542.9,2542.8,0.6773]
[1751933267828,3.4942,2542.9,2542.8,1.46373]
[1751933268024,3.6944,2542.9,2542.5,3.52977325]
[1751933268224,0.78649,2542.6,2542.5,0.78651]
[1751933268433,0.78652,2542.5,2542.4,1.42953]
[1751933268627,1.46992,2542.5,2542.4,2.10683]
[1751933268829,2.88012,2542.5,2542.4,2.10683]
[1751933269529,1.4102,2542.5,2542.4,2.10683]
[1751933269835,2.88012,2542.5,2542.4,3.14713]
[1751933270033,2.83632,2542.5,2542.4,3.14713]
[1751933270333,1.42612,2542.5,2542.4,3.14713]
[1751933270832,0.6396,2542.5,2542.4,3.14713]
[1751933271838,1.42612,2542.5,2542.4,3.14713]
[1751933272638,0.6396,2542.5,2542.4,3.14713]
[1751933272839,26.8,2542.6,2542.5,0.78652]
[1751933273232,26.8,2542.6,2542.5,1.43172]
[1751933273433,26.8,2542.6,2542.5,2.39562]
[1751933274040,0.78643,2542.8,2542.7,0.78646]
[1751933274338,27.58843,2542.8,2542.7,2.39556]
[1751933274539,28.22803,2542.8,2542.7,2.39556]
[1751933274739,27.4416,2542.8,2542.7,2.39556]
[1751933275133,28.22803,2542.8,2542.7,2.39556]
[1751933276439,28.22803,2542.8,2542.7,1.43166]
[1751933279843,27.4416,2542.8,2542.7,1.43166]
[1751933280343,28.22803,2542.8,2542.7,1.43166]
[1751933280538,27.4416,2542.8,2542.7,1.43166]
[1751933280739,27.4416,2542.8,2542.7,2.39556]
[1751933281446,28.22803,2542.8,2542.7,1.43166]
[1751933282737,0.78634,2543.2,2542.8,1.96601]
[1751933282942,1.45677283,2543.1,2543.0,0.78637]
[1751933283142,26.792,2543.1,2543.0,1.43157]
[1751933283345,27.57834,2543.1,2543.0,2.39547]
[1751933283547,28.21794,2543.1,2543.0,2.39547]
[1751933283839,27.57834,2543.1,2543.0,2.39547]
[1751933284041,1.42594,2543.1,2543.0,2.39547]
[1751933284240,27.57834,2543.1,2543.0,2.39547]
[1751933284551,28.21794,2543.1,2543.0,1.43157]
[1751933284740,29.56984,2543.1,2543.0,1.43157]
[1751933286748,29.56984,2543.1,2543.0,0.6452]
[1751933287047,29.56984,2543.1,2543.0,1.43157]
[1751933289654,0.7864,2542.9,2542.8,0.6423]
[1751933289952,28.206,2542.9,2542.8,2.07392]
[1751933290744,27.5664,2542.9,2542.8,2.07392]
[1751933291045,27.4196,2542.9,2542.8,2.07392]
[1751933291250,28.206,2542.9,2542.8,3.03782]
[1751933291447,28.206,2542.9,2542.8,2.07392]
[1751933291847,27.5664,2542.9,2542.8,2.07392]
[1751933292349,28.206,2542.9,2542.8,2.07392]
[1751933292545,27.4196,2542.9,2542.8,2.07392]
[1751933292745,28.206,2542.9,2542.8,2.07392]
[1751933294749,29.5724,2542.9,2542.8,2.07392]
[1751933298756,28.786,2542.9,2542.8,2.07392]
[1751933298956,29.5724,2542.9,2542.8,2.07392]
[1751933304056,29.5724,2542.9,2542.8,2.12972]
[1751933305562,28.786,2542.9,2542.8,2.12972]
[1751933305864,27.4196,2542.9,2542.8,3.16952]
[1751933307761,10.3786,2543.2,2542.8,3.16952]
[1751933307762,9.6967,2543.2,2543.1,0.78634]
[1751933308060,37.16390156,2543.2,2543.1,2.52714]
[1751933309462,37.95020156,2543.2,2543.1,1.48734]
[1751933310462,37.16390156,2543.2,2543.1,1.48734]
[1751933310871,37.16390156,2543.2,2543.1,2.52714]
[1751933311166,10.40690156,2543.2,2543.1,2.52714]
[1751933311359,3.53066574,2543.9,2543.5,0.78621]
[1751933311560,3.67060524,2544.1,2543.8,0.701]
[1751933311766,3.53066574,2544.4,2544.0,1.96508]
[1751933311968,3.53066574,2544.7,2544.2,1.96493]
[1751933312165,71.56732006,2545.4,2544.2,1.96493]
[1751933312166,11.82366574,2545.3,2544.7,0.78584]
[1751933312363,8.293,2545.3,2545.2,0.78569]
[1751933312567,5.81086574,2545.5,2545.4,0.78563]
[1751933312764,0.9782,2545.5,2545.4,0.78563]
[1751933315170,26.795,2545.8,2545.7,0.78553]
[1751933315574,28.0892,2545.8,2545.7,0.78553]
[1751933316087,29.51792,2545.8,2545.6,0.78556]
[1751933316574,0.78553,2545.7,2545.6,0.78556]
[1751933316766,2.11483,2545.7,2545.6,0.78556]
[1751933316970,2.75803,2545.7,2545.6,1.48656]
[1751933317271,2.11483,2545.7,2545.6,1.48656]
[1751933317473,2.75803,2545.7,2545.6,0.701]
[1751933318174,0.78559,2545.5,2545.4,0.7856]
[1751933318473,1.42879,2545.5,2545.4,1.4866]
[1751933318677,0.78559,2545.5,2545.4,1.4866]
[1751933318880,0.78558,2545.6,2545.4,1.4866]
[1751933319080,2.11485,2545.7,2545.5,0.78558]
[1751933319269,1.3293,2545.7,2545.6,0.78556]
[1751933319473,2.75803,2545.7,2545.6,0.701]
[1751933320371,2.75803,2545.7,2545.6,1.48657]
[1751933320775,2.75803,2545.7,2545.6,0.701]
[1751933320974,2.75803,2545.7,2545.6,1.48657]
[1751933322386,0.7856,2545.5,2545.4,0.7856]
[1751933322577,29.174,2545.5,2545.4,0.7856]
[1751933323078,0.78571,2545.2,2545.1,0.7857]
[1751933323284,1.42891,2545.2,2545.1,0.7857]
[1751933323476,28.19891,2545.2,2545.1,0.7857]
[1751933323978,28.19891,2545.2,2544.9,0.78575]
[1751933323979,0.78576,2545.0,2544.9,0.78575]
[1751933324184,1.42896,2545.0,2544.9,0.78575]
[1751933324379,2.40716,2545.0,2544.9,0.78575]
[1751933324785,0.6432,2545.0,2544.9,1.48675]
[1751933325288,2.81325,2545.0,2544.9,1.48675]
[1751933325981,2.81325,2545.0,2544.9,0.701]
[1751933326186,2.81325,2545.0,2544.8,0.78579]
[1751933326187,0.78578,2544.9,2544.8,0.78579]
[1751933326479,0.78583,2544.8,2544.7,0.78584]
[1751933326686,1.42903,2544.8,2544.7,0.78584]
[1751933326882,2.81333,2544.8,2544.7,0.78584]
[1751933328088,2.81333,2544.8,2544.7,1.48684]
[1751933328283,2.0275,2544.8,2544.7,1.48684]
[1751933328686,1.3843,2544.8,2544.7,1.48684]
[1751933328884,2.0275,2544.8,2544.7,1.48684]
[1751933329087,27.56279,2544.9,2544.8,0.78581]
[1751933329289,28.20599,2544.9,2544.8,1.48681]
[1751933329683,0.78581,2544.8,2544.7,0.78582]
[1751933329883,2.72531,2544.8,2544.7,0.78582]
[1751933330987,2.72531,2544.8,2544.7,1.46772]
[1751933331588,2.72531,2544.8,2544.7,0.78582]
[1751933331791,2.72531,2544.8,2544.7,1.46772]
[1751933338400,3.73301,2544.8,2544.7,0.6819]
[1751933338599,3.73301,2544.8,2544.3,2.60808]
[1751933338600,2.9472,2544.8,2544.3,2.60808]
[1751933338802,0.7859,2544.6,2544.5,0.78587]
[1751933339002,27.5529,2544.6,2544.5,0.78587]
[1751933339201,28.254,2544.6,2544.5,1.46777]
[1751933339606,27.4681,2544.6,2544.5,1.46777]
[1751933339809,28.25398,2544.6,2544.5,1.46777]
[1751933341097,28.25398,2544.6,2544.5,0.78587]
[1751933341701,28.25398,2544.6,2544.5,1.46777]
[1751933342098,28.25398,2544.6,2544.5,0.78587]
[1751933342501,28.25398,2544.6,2544.5,1.46777]
[1751933345912,28.25398,2544.6,2544.1,3.52977325]
[1751933345913,30.44052,2544.6,2544.1,3.52977325]
[1751933346206,0.78609,2543.9,2543.8,3.52977325]
[1751933346503,38.75405,2543.9,2543.4,4.17747325]
[1751933346704,0.78621,2543.5,2543.4,0.6477]
[1751933347008,27.4881,2543.5,2543.4,2.11582]
[1751933347906,1.3104,2543.8,2543.7,0.78615]
[1751933348210,28.0984,2543.8,2543.7,1.46805]
[1751933348408,26.792,2543.8,2543.7,1.46805]
[1751933349006,28.27922,2543.8,2543.7,1.46805]
[1751933349912,29.61112,2543.8,2543.7,1.46805]
[1751933350306,0.78621,2543.5,2543.4,1.43394]
[1751933350509,28.27931,2543.5,2543.4,2.11584]
[1751933350812,27.57821,2543.5,2543.4,1.3296]
[1751933351005,28.27931,2543.5,2543.4,1.3296]
[1751933351402,27.4931,2543.5,2543.4,2.11585]
[1751933352212,27.4931,2543.5,2543.4,3.12435]
[1751933354414,27.4931,2543.5,2543.4,2.11585]
[1751933355913,0.7011,2543.5,2543.4,2.11585]
[1751933356117,10.41902,2543.8,2543.7,0.78615]
[1751933356318,37.21002,2543.8,2543.7,1.46805]
[1751933356518,36.4239,2543.8,2543.7,1.46805]
[1751933356713,35.092,2543.8,2543.7,1.46805]
[1751933356919,2.46048,2544.0,2543.9,0.78609]
[1751933357118,38.26158,2544.0,2543.9,0.78609]
[1751933357321,0.78612,2543.9,2543.8,0.7861]
[1751933357513,2.77832,2543.9,2543.8,1.468]
[1751933357714,7.9999,2543.9,2543.1,1.0085]
[1751933357916,2.9999,2543.9,2543.1,2.97434]
[1751933358114,2.9999,2543.9,2543.6,0.78617]
[1751933358115,0.78616,2543.7,2543.6,0.78617]
[1751933358314,1.96547,2543.6,2543.1,1.0085]
[1751933358516,0.78636,2543.1,2543.0,0.78635]
[1751933358712,0.78636,2543.1,2542.9,0.6492]
[1751933358713,0.78637,2543.0,2542.9,1.43558]
[1751933359016,0.78635,2543.1,2543.0,0.78635]
[1751933359515,26.809,2543.2,2542.9,1.3311]
[1751933359516,26.809,2543.2,2543.1,0.78634]
[1751933359821,2.13379,2543.3,2543.2,0.78631]
[1751933360113,37.24479,2543.3,2543.2,0.78631]
[1751933361022,27.59329,2543.3,2543.2,0.78629]